lending/lending_fUSD_20240128
["ID","MTS","AMOUNT","RATE_DAILY","PERIOD"]
[312909417,1706454696164,-500.0,0.00053698,31]
[312909418,1706454696188,-958.78,0.00053698,31]
[312909419,1706454696215,-500.0,0.00053698,31]
[312909420,1706454696240,-500.0,0.00053698,31]
[312909421,1706454696265,-500.0,0.00053698,31]
[312909422,1706454696290,-298.41251174,0.00053698,31]
[312909423,1706454696314,-500.0,0.00053698,31]
[312909424,1706454696339,-733.5,0.00053698,31]
[312909425,1706454696364,-787.33,0.00053698,31]
[312909426,1706454696388,-500.0,0.00053698,31]
[312909427,1706454696413,-500.0,0.00053698,31]
[312909428,1706454696437,-500.0,0.00053698,31]
[312909429,1706454696462,-500.0,0.00053698,31]
[312909430,1706454696489,-629.21,0.00053698,31]
[312909431,1706454696514,-629.27,0.00053698,31]
[312909432,1706454696538,-252.65291889,0.00053698,31]
[312909433,1706454696563,-2086.17,0.00053698,31]
[312909434,1706454696588,-500.0,0.00053698,31]
[312909435,1706454696612,-500.0,0.00053698,31]
[312909436,1706454696636,-500.0,0.00053698,31]
[312909437,1706454696661,-500.0,0.00053698,31]
[312909438,1706454696686,-500.0,0.00053698,31]
[312909439,1706454696711,-500.0,0.00053698,31]
[312909440,1706454696739,-500.0,0.00053698,31]
[312909441,1706454696763,-11346.51,0.00053698,31]
[312909442,1706454696788,-500.0,0.00053698,31]
[312909443,1706454696813,-500.0,0.00053698,31]
[312909444,1706454696916,-500.0,0.00053698,31]
[312909445,1706454696942,-500.0,0.00053698,31]
[312909446,1706454696968,-1249.59,0.00053698,31]
[312909447,1706454696993,-374.30045728,0.00053698,31]
[312909448,1706454697019,-7265.0,0.00053698,31]
[312909449,1706454697044,-1492.32,0.00053698,31]
[312909450,1706454697068,-500.0,0.00053698,31]
[312909451,1706454697094,-500.0,0.00053698,31]
[312909452,1706454697121,-1318.47,0.00053698,31]
[312909453,1706454697146,-500.0,0.00053698,31]
[312909454,1706454697172,-500.0,0.00053698,31]
[312909455,1706454697198,-500.0,0.00053698,31]
[312909456,1706454697225,-500.0,0.00053698,31]
[312909457,1706454697250,-500.0,0.00053698,31]
[312909458,1706454697274,-500.0,0.00053698,31]
[312909459,1706454697298,-518.89,0.00053698,31]
[312909460,1706454697323,-150.0,0.00053699,30]
[312909461,1706454697347,-150.0,0.00053699,30]
[312909462,1706454697371,-150.0,0.00053699,30]
[312909463,1706454697394,-150.0,0.00053699,30]
[312909464,1706454697418,-155.11,0.00053699,30]
[312909465,1706454697470,-300.0,0.00053699,30]
[312909466,1706454697514,-300.0,0.00053699,30]
[312909467,1706454697557,-300.0,0.00053699,30]
[312909468,1706454697599,-300.0,0.00053699,30]
[312909469,1706454697645,-300.0,0.00053699,30]
[312909470,1706454697680,-300.0,0.00053699,30]
[312909471,1706454697715,-300.0,0.00053699,30]
[312909472,1706454697751,-300.0,0.00053699,30]
[312909473,1706454697788,-300.0,0.00053699,30]
[312909474,1706454697825,-300.0,0.00053699,30]
[312909475,1706454697861,-300.0,0.00053699,30]
[312909476,1706454697898,-150.0,0.00053699,30]
[312909477,1706454697934,-150.0,0.00053699,30]
[312909478,1706454697973,-150.0,0.00053699,30]
[312909479,1706454698008,-150.0,0.00053699,30]
[312909480,1706454698044,-150.0,0.00053699,30]
[312909481,1706454698079,-150.0,0.00053699,30]
[312909482,1706454698111,-150.0,0.00053699,30]
[312909483,1706454698137,-150.0,0.00053699,30]
[312909484,1706454698161,-354.47,0.00053699,30]
[312909485,1706454698187,-150.2066421,0.00053699,60]
[312909486,1706454698369,-11827.98066357,0.000537,30]
[312909487,1706454698393,-202.07436048,0.00053706,60]
[312909488,1706454698416,-168.05222798,0.00053717,60]
[312909489,1706454698440,-412.64597082,0.00053726,60]
[312909490,1706454698464,-160.45378998,0.00053727,60]
[312909491,1706454698488,-202.07436048,0.00053737,60]
[312909492,1706454698511,-1118.57219074,0.00053744,60]
[312909493,1706454698536,-151.0128,0.00053748,59]
[312909494,1706454698559,-155.54214326,0.00053748,60]
[312909495,1706454698582,-1646.57,0.0005375,120]
[312909496,1706454698606,-150.0,0.00053751,30]
[312909497,1706454698635,-154.58312369,0.00053751,60]
[312909498,1706454698658,-154.30349447,0.00053765,60]
[312909499,1706454698682,-156.90240728,0.00053786,60]
[312909500,1706454698705,-154.58312369,0.00053798,60]
[312909501,1706454698730,-11601.45703374,0.000538,60]
[312909502,1706454698753,-15000.0,0.000538,31]
[312909503,1706454698776,-155.54214326,0.00053805,60]
[312909504,1706454698800,-66449.0,0.0005382,30]
[312909505,1706454698823,-226.02576272,0.0005382,30]
[312909506,1706454698846,-2321.0,0.0005382,30]
[312909507,1706454698870,-521.0,0.0005382,30]
[312909508,1706454698894,-1440.16337217,0.0005382,30]
[312909509,1706454698918,-157.3488617,0.00053821,60]
[312909510,1706454698942,-159.88272957,0.00053837,60]
[312909511,1706454698967,-412.64597082,0.00053838,60]
[312909512,1706454698991,-160.45378998,0.00053853,60]
[312909513,1706454699015,-2109.87082347,0.00053856,30]
[312909514,1706454699039,-1118.57219074,0.00053872,60]
[312909515,1706454699064,-155.54214326,0.00053877,60]
[312909516,1706454699088,-202.07436048,0.00053881,60]
[312909517,1706454699112,-408.74614761,0.00053886,120]
[312909518,1706454699138,-155.9836626,0.00053887,60]
[312909519,1706454699163,-150.0,0.00053891,30]
[312909520,1706454699187,-160.45378998,0.00053891,60]
[312909521,1706454699212,-150.30324068,0.00053898,60]
[312909522,1706454699237,-6022.97005711,0.000539,30]
[312909523,1706454699261,-1255.26074372,0.000539,30]
[312909524,1706454699287,-177.42486761,0.000539,120]
[312909525,1706454699312,-407.0,0.000539,120]
[312909526,1706454699335,-412.64597082,0.00053903,60]
[312909527,1706454699359,-150.0,0.00053919,30]
[312909528,1706454699384,-155.54214326,0.00053923,60]
[312909529,1706454699408,-152.42113845,0.0005393,60]
[312909530,1706454699431,-202.07436048,0.00053939,60]
[312909531,1706454699455,-1118.57219074,0.00053956,60]
[312909532,1706454699481,-412.64597082,0.00053962,60]
[312909533,1706454699504,-157.3488617,0.00053963,60]
[312909534,1706454699530,-155.54214326,0.00053968,60]
[312909535,1706454699553,-543.44,0.00053972,31]
[312909536,1706454699576,-500.0,0.00053972,31]
[312909537,1706454699600,-500.0,0.00053972,31]
[312909538,1706454699701,-834.81,0.00053972,31]
[312909539,1706454699725,-586.28,0.00053972,31]
[312909540,1706454699749,-500.0,0.00053972,31]
[312909541,1706454699774,-500.0,0.00053972,31]
[312909542,1706454699798,-736.24,0.00053972,31]
[312909543,1706454699823,-500.0,0.00053972,31]
[312909544,1706454699847,-1590.02,0.00053972,31]
[312909545,1706454699873,-778.45,0.00053972,31]
[312909546,1706454699899,-500.0,0.00053972,31]
[312909547,1706454699924,-709.3,0.00053972,31]
[312909548,1706454699948,-546.77,0.00053972,31]
[312909549,1706454699974,-500.0,0.00053972,31]
[312909550,1706454699999,-958.78,0.00053972,31]
[312909551,1706454700024,-500.0,0.00053972,31]
[312909552,1706454700051,-155.9836626,0.00053972,60]
[312909553,1706454700076,-500.0,0.00053972,31]
[312909554,1706454700101,-500.0,0.00053972,31]
[312909555,1706454700127,-500.0,0.00053972,31]
[312909556,1706454700152,-733.5,0.00053972,31]
[312909557,1706454700178,-787.33,0.00053972,31]
[312909558,1706454700203,-500.0,0.00053972,31]
[312909559,1706454700228,-500.0,0.00053972,31]
[312909560,1706454700253,-500.0,0.00053972,31]
[312909561,1706454700276,-500.0,0.00053972,31]
[312909562,1706454700301,-629.21,0.00053972,31]
[312909563,1706454700326,-629.27,0.00053972,31]
[312909564,1706454700352,-2086.17,0.00053972,31]
[312909565,1706454700377,-500.0,0.00053972,31]
[312909566,1706454700401,-500.0,0.00053972,31]
[312909567,1706454700425,-500.0,0.00053972,31]
[312909568,1706454700449,-500.0,0.00053972,31]
[312909569,1706454700473,-500.0,0.00053972,31]
[312909570,1706454700506,-500.0,0.00053972,31]
[312909571,1706454700534,-500.0,0.00053972,31]
[312909572,1706454700559,-11346.51,0.00053972,31]
[312909573,1706454700584,-500.0,0.00053972,31]
[312909574,1706454700609,-500.0,0.00053972,31]
[312909575,1706454700637,-226.2514899,0.00053972,31]
[312909576,1706454700663,-500.0,0.00053972,31]
[312909577,1706454700689,-1249.59,0.00053972,31]
[312909578,1706454700713,-7265.0,0.00053972,31]
[312909579,1706454700739,-1492.32,0.00053972,31]
[312909580,1706454700765,-500.0,0.00053972,31]
[312909581,1706454700791,-500.0,0.00053972,31]
[312909582,1706454700816,-1318.47,0.00053972,31]
[312909583,1706454700841,-500.0,0.00053972,31]
[312909584,1706454700866,-500.0,0.00053972,31]
[312909585,1706454700892,-500.0,0.00053972,31]
[312909586,1706454700919,-500.0,0.00053972,31]
[312909587,1706454700943,-500.0,0.00053972,31]
[312909588,1706454700967,-518.89,0.00053972,31]
[312909589,1706454700993,-158.4818493,0.00053979,60]
[312909590,1706454701018,-150.0,0.0005398,30]
[312909591,1706454701042,-155.10176526,0.0005398,60]
[312909592,1706454701066,-156.90240728,0.00053982,60]
[312909593,1706454701092,-200.0,0.00053987,33]
[312909594,1706454701119,-200.0,0.00053987,41]
[312909595,1706454701146,-155.10176526,0.00053989,60]
[312909596,1706454701170,-412.64597082,0.00053992,60]
[312909597,1706454701197,-50000.0,0.00054,44]
[312909598,1706454701221,-2000.0,0.00054,30]
[312909599,1706454701245,-2000.0,0.00054,30]
[312909600,1706454701269,-2000.0,0.00054,30]
[312909601,1706454701295,-1000000.0,0.00054,120]
[312909602,1706454701319,-2000.0,0.00054,120]
[312909603,1706454701344,-539.53841714,0.00054,90]
[312909604,1706454701367,-2264.70250367,0.00054,30]
[312909605,1706454701390,-205.67,0.00054,30]
[312909606,1706454701415,-2000.0,0.00054,120]
[312909607,1706454701442,-20337.67,0.00054,120]
[312909608,1706454701469,-199666.12294465,0.00054,120]
[312909609,1706454716015,-314.63377535,0.00045,30]
[312909610,1706454716042,-4000.20087229,0.00045,30]
[312909611,1706454716075,-1000.0,0.00049889,30]
[312909612,1706454716102,-359.82847572,0.0005,120]
[312909613,1706454716129,-489376.41050696,0.0005,60]
[312909614,1706454716158,-256.906368,0.00052,30]
[312909615,1706454716190,-500.0,0.00052054,31]
[312909616,1706454716338,-500.0,0.00052054,31]
[312909617,1706454716413,-500.0,0.00052328,31]
[312909618,1706454716438,-500.0,0.00052328,31]
[312909619,1706454716463,-500.0,0.00052602,31]
[312909620,1706454716488,-500.0,0.00052602,31]
[312909621,1706454716513,-500.0,0.00052876,31]
[312909622,1706454716537,-500.0,0.00052876,31]
[312909623,1706454716563,-500.0,0.0005315,31]
[312909624,1706454716587,-500.0,0.0005315,31]
[312909625,1706454716612,-500.0,0.00053424,31]
[312909626,1706454716636,-500.0,0.00053424,31]
[312909627,1706454716660,-17454.0,0.000536,120]
[312909628,1706454716685,-500.0,0.00053698,31]
[312909629,1706454716709,-500.0,0.00053698,31]
[312909630,1706454716734,-553.14332976,0.00053972,31]
[312909631,1706454716758,-500.0,0.00053972,31]
[312909632,1706454716781,-407149.43314026,0.00054,120]
[312909633,1706454716804,-300.0,0.00054,32]
[312909634,1706454716827,-300.0,0.00054,55]
[312909635,1706454716851,-531.02527739,0.00054,60]
[312909636,1706454716874,-10000.0,0.00054,60]
[312909637,1706454716900,-10000.0,0.00054,60]
[312909638,1706454716925,-10000.0,0.00054,60]
[312909639,1706454716950,-10000.0,0.00054,60]
[312909640,1706454716974,-10000.0,0.00054,60]
[312909641,1706454716998,-10000.0,0.00054,60]
[312909642,1706454717022,-10000.0,0.00054,60]
[312909643,1706454717046,-10000.0,0.00054,60]
[312909644,1706454717069,-10000.0,0.00054,60]
[312909645,1706454717093,-10000.0,0.00054,60]
[312909646,1706454717117,-10000.0,0.00054,60]
[312909647,1706454717142,-10000.0,0.00054,60]
[312909648,1706454717166,-10000.0,0.00054,60]
[312909649,1706454717189,-17870.09714175,0.00054,60]
[312909650,1706454717213,-10000.0,0.00054,60]
[312909651,1706454717235,-19411.67666715,0.00054,60]
[312909652,1706454717259,-1439.34765982,0.00054,60]
[312909653,1706454717283,-150.0,0.00054,30]
[312909654,1706454717306,-154.58312369,0.00054003,60]
[312909655,1706454717332,-173.58026709,0.00054007,60]
[312909656,1706454717355,-150.2066421,0.00054011,60]
[312909657,1706454717379,-154.58312369,0.00054048,60]
[312909658,1706454717403,-152.42113847,0.00054057,60]
[312909659,1706454717428,-1118.57219074,0.00054065,60]
[312909660,1706454717451,-154.58312369,0.00054076,60]
[312909661,1706454717475,-154.58312369,0.00054086,60]
[312909662,1706454717501,-150.0,0.00054087,30]
[312909663,1706454717525,-153.15441342,0.00054089,30]
[312909664,1706454717548,-155.9836626,0.00054106,60]
[312909665,1706454717572,-150.2066421,0.00054107,60]
[312909666,1706454717595,-155.10176526,0.00054107,60]
[312909667,1706454717619,-155.54214326,0.00054123,60]
[312909668,1706454717644,-173.58026709,0.00054135,60]
[312909669,1706454717669,-158.4818493,0.00054142,60]
[312909670,1706454717695,-151.0128,0.00054148,69]
[312909671,1706454717719,-154.42460598,0.00054153,60]
[312909672,1706454717745,-1118.57219074,0.00054163,60]
[312909673,1706454717773,-155.54214326,0.00054164,60]
[312909674,1706454717798,-155.9836626,0.00054181,60]
[312909675,1706454717830,-1118.57219074,0.00054188,60]
[312909676,1706454717855,-154.58312369,0.00054198,60]
[312909677,1706454717882,-202.07436048,0.00054206,60]
[312909678,1706454717909,-155.54214326,0.00054213,60]
[312909679,1706454717935,-202.07436048,0.00054228,60]
[312909680,1706454717959,-158.48184931,0.00054229,60]
[312909681,1706454717985,-155.54214326,0.00054229,60]
[312909682,1706454718010,-154.58312369,0.0005423,60]
[312909683,1706454718035,-202.07436048,0.00054235,60]
[312909684,1706454718060,-157.3488617,0.00054236,60]
[312909685,1706454718085,-150.2066421,0.00054238,60]
[312909686,1706454718110,-155.10176526,0.00054244,60]
[312909687,1706454718136,-543.44,0.00054246,31]
[312909688,1706454718162,-500.0,0.00054246,31]
[312909689,1706454718187,-500.0,0.00054246,31]
[312909690,1706454718218,-834.81,0.00054246,31]
[312909691,1706454718243,-586.28,0.00054246,31]
[312909692,1706454718268,-500.0,0.00054246,31]
[312909693,1706454718293,-736.24,0.00054246,31]
[312909694,1706454718318,-500.0,0.00054246,31]
[312909695,1706454718472,-1590.02,0.00054246,31]
[312909696,1706454718499,-778.45,0.00054246,31]
[312909697,1706454718524,-500.0,0.00054246,31]
[312909698,1706454718553,-709.3,0.00054246,31]
[312909699,1706454718578,-546.77,0.00054246,31]
[312909700,1706454718603,-500.0,0.00054246,31]
[312909701,1706454718628,-958.78,0.00054246,31]
[312909702,1706454718658,-500.0,0.00054246,31]
[312909703,1706454718683,-154.58312369,0.00054246,60]
[312909704,1706454718710,-500.0,0.00054246,31]
[312909705,1706454718738,-733.5,0.00054246,31]
[312909706,1706454718763,-787.33,0.00054246,31]
[312909707,1706454718787,-500.0,0.00054246,31]
[312909708,1706454718812,-460.27898383,0.00054246,31]
[312909709,1706454718840,-500.0,0.00054246,31]
[312909710,1706454718866,-500.0,0.00054246,31]
[312909711,1706454718891,-629.21,0.00054246,31]
[312909712,1706454718917,-629.27,0.00054246,31]
[312909713,1706454718942,-2086.17,0.00054246,31]
[312909714,1706454718968,-500.0,0.00054246,31]
[312909715,1706454718996,-500.0,0.00054246,31]
[312909716,1706454719022,-500.0,0.00054246,31]
[312909717,1706454719047,-500.0,0.00054246,31]
[312909718,1706454719075,-500.0,0.00054246,31]
[312909719,1706454719101,-500.0,0.00054246,31]
[312909720,1706454719128,-500.0,0.00054246,31]
[312909721,1706454719154,-11346.51,0.00054246,31]
[312909722,1706454719179,-500.0,0.00054246,31]
[312909723,1706454719204,-500.0,0.00054246,31]
[312909724,1706454719230,-500.0,0.00054246,31]
[312909725,1706454719255,-1249.59,0.00054246,31]
[312909726,1706454719280,-7265.0,0.00054246,31]
[312909727,1706454719305,-1492.32,0.00054246,31]
[312909728,1706454719330,-500.0,0.00054246,31]
[312909729,1706454719360,-500.0,0.00054246,31]
[312909730,1706454719386,-1318.47,0.00054246,31]
[312909731,1706454719423,-500.0,0.00054246,31]
[312909732,1706454719450,-500.0,0.00054246,31]
[312909733,1706454719476,-500.0,0.00054246,31]
[312909734,1706454719504,-500.0,0.00054246,31]
[312909735,1706454719529,-500.0,0.00054246,31]
[312909736,1706454719555,-518.89,0.00054246,31]
[312909737,1706454719581,-500.0,0.00054246,31]
[312909738,1706454719607,-155.10176526,0.00054252,60]
[312909739,1706454719634,-150.0,0.00054255,30]
[312909740,1706454719662,-1118.57219074,0.00054257,60]
[312909741,1706454719687,-153.49545101,0.00054259,60]
[312909742,1706454719712,-159.88272957,0.00054263,60]
[312909743,1706454719736,-157.3488617,0.00054264,60]
[312909744,1706454719765,-154.58312369,0.00054283,60]
[312909745,1706454719790,-154.58312369,0.0005429,60]
[312909746,1706454719814,-173.58026712,0.00054294,60]
[312909747,1706454719838,-154.58312369,0.00054307,60]
[312909748,1706454719864,-202.07436048,0.00054322,60]
[312909749,1706454719889,-202.07436048,0.00054323,60]
[312909750,1706454719914,-202.07436048,0.0005433,60]
[312909751,1706454719941,-154.58312369,0.00054332,60]
[312909752,1706454719969,-154.58312369,0.00054334,60]
[312909753,1706454719995,-396.4358558,0.00054348,120]
[312909754,1706454720022,-412.64597082,0.00054351,60]
[312909755,1706454720050,-66449.0,0.00054358,30]
[312909756,1706454720077,-2321.0,0.00054358,30]
[312909757,1706454720102,-521.0,0.00054358,30]
[312909758,1706454720128,-160.45378998,0.00054362,60]
[312909759,1706454720154,-156.9024073,0.00054378,60]
[312909760,1706454720180,-150.0,0.00054381,30]
[312909761,1706454720206,-150.0,0.00054381,30]
[312909762,1706454720231,-150.0,0.00054381,30]
[312909763,1706454720257,-1118.57219074,0.00054381,60]
[312909764,1706454720283,-154.58312369,0.00054383,60]
[312909765,1706454720308,-412.64597082,0.00054399,60]
[312909766,1706454720333,-155.10176526,0.00054399,60]
[312909767,1706454720359,-407.0,0.000544,120]
[312909768,1706454720384,-160.45378998,0.00054412,60]
[312909769,1706454720410,-1118.57219074,0.00054418,60]
[312909770,1706454720435,-202.07436048,0.00054419,60]
[312909771,1706454720462,-150.0,0.00054423,30]
[312909772,1706454720489,-151.0128,0.00054448,59]
[312909773,1706454720515,-1118.57219074,0.00054448,60]
[312909774,1706454720539,-412.64597082,0.00054451,60]
[312909775,1706454720564,-412.64597082,0.00054461,60]
[312909776,1706454720589,-202.07436048,0.00054467,60]
[312909777,1706454720614,-160.45378998,0.00054479,60]
[312909778,1706454720759,-157.3488617,0.00054483,60]
[312909779,1706454720790,-154.58312369,0.00054483,60]
[312909780,1706454720816,-160.45378998,0.00054485,60]
[312909781,1706454720841,-154.58312369,0.0005449,60]
[312909782,1706454720867,-1000000.0,0.000545,120]
[312909783,1706454720894,-202.07436048,0.00054502,60]
[312909784,1706454720919,-155.54214326,0.00054502,60]
[312909785,1706454720944,-1118.57219074,0.0005451,60]
[312909786,1706454720970,-150.0,0.00054514,30]
[312909787,1706454721001,-155.54214326,0.00054517,60]
[312909788,1706454721026,-543.44,0.0005452,120]
[312909789,1706454721049,-500.0,0.0005452,120]
[312909790,1706454721074,-500.0,0.0005452,120]
[312909791,1706454721098,-834.81,0.0005452,120]
[312909792,1706454721123,-586.28,0.0005452,120]
[312909793,1706454721152,-500.0,0.0005452,120]
[312909794,1706454721177,-736.24,0.0005452,120]
[312909795,1706454721205,-500.0,0.0005452,120]
[312909796,1706454721234,-1590.02,0.0005452,120]
[312909797,1706454721263,-778.45,0.0005452,120]
[312909798,1706454721288,-500.0,0.0005452,120]
[312909799,1706454721313,-709.3,0.0005452,120]
[312909800,1706454721338,-546.77,0.0005452,120]
[312909801,1706454721362,-500.0,0.0005452,120]
[312909802,1706454721387,-958.78,0.0005452,120]
[312909803,1706454721412,-500.0,0.0005452,120]
[312909804,1706454721437,-500.0,0.0005452,120]
[312909805,1706454721463,-733.5,0.0005452,120]
[312909806,1706454721487,-787.33,0.0005452,120]
[312909807,1706454721515,-500.0,0.0005452,120]
[312909808,1706454721539,-500.0,0.0005452,120]
[312909809,1706454721564,-500.0,0.0005452,120]
[312909810,1706454721588,-629.21,0.0005452,120]
[312909811,1706454721614,-629.27,0.0005452,120]
[312909812,1706454721642,-2086.17,0.0005452,120]
[312909813,1706454721667,-500.0,0.0005452,120]
[312909814,1706454721692,-500.0,0.0005452,120]
[312909815,1706454721716,-500.0,0.0005452,120]
[312909816,1706454721742,-500.0,0.0005452,120]
[312909817,1706454721767,-500.0,0.0005452,120]
[312909818,1706454721793,-500.0,0.0005452,120]
[312909819,1706454721819,-500.0,0.0005452,120]
[312909820,1706454721845,-11346.51,0.0005452,120]
[312909821,1706454721871,-500.0,0.0005452,120]
[312909822,1706454721901,-500.0,0.0005452,120]
[312909823,1706454721927,-500.0,0.0005452,120]
[312909824,1706454721951,-1249.59,0.0005452,120]
[312909825,1706454721975,-7265.0,0.0005452,120]
[312909826,1706454722000,-1492.32,0.0005452,120]
[312909827,1706454722025,-500.0,0.0005452,120]
[312909828,1706454722051,-500.0,0.0005452,120]
[312909829,1706454722078,-1318.47,0.0005452,120]
[312909830,1706454722103,-500.0,0.0005452,120]
[312909831,1706454722131,-500.0,0.0005452,120]
[312909832,1706454722156,-500.0,0.0005452,120]
[312909833,1706454722183,-500.0,0.0005452,120]
[312909834,1706454722209,-500.0,0.0005452,120]
[312909835,1706454722239,-518.89,0.0005452,120]
[312909836,1706454722266,-500.0,0.0005452,120]
[312909837,1706454722294,-161.86262826,0.00054523,60]
[312909838,1706454722319,-158.86964684,0.00054528,60]
[312909839,1706454722345,-157.3488617,0.0005453,60]
[312909840,1706454722369,-166.1201865,0.00054533,60]
[312909841,1706454722393,-1118.57219074,0.00054533,60]
[312909842,1706454722417,-154.58312369,0.00054537,60]
[312909843,1706454722441,-202.07436048,0.00054538,60]
[312909844,1706454722466,-1118.57219074,0.00054542,60]
[312909845,1706454722492,-157.3488617,0.00054545,60]
[312909846,1706454722521,-157.0128,0.00054548,59]
[312909847,1706454722548,-169.81050378,0.00054549,60]
[312909848,1706454722573,-157.3488617,0.00054568,60]
[312909849,1706454722597,-1118.57219074,0.0005457,60]
[312909850,1706454722622,-202.07436048,0.00054585,60]
[312909851,1706454722647,-150.0,0.00054591,30]
[312909852,1706454722671,-155.9836626,0.00054602,60]
[312909853,1706454722695,-154.58312369,0.00054621,60]
[312909854,1706454722726,-202.07436048,0.00054624,60]
[312909855,1706454722752,-202.07436048,0.00054629,60]
[312909856,1706454722777,-412.64597082,0.0005463,60]
[312909857,1706454722802,-173.99940086,0.00054645,60]
[312909858,1706454722911,-151.0128,0.00054648,89]
[312909859,1706454722957,-155.98366262,0.00054674,60]
[312909860,1706454722986,-412.64597082,0.00054687,60]
[312909861,1706454723012,-202.07436048,0.00054694,60]
[312909862,1706454723038,-2042.0,0.000547,117]
[312909863,1706454723064,-943.648734,0.000547,60]
[312909864,1706454723089,-154.424606,0.00054709,60]
[312909865,1706454723115,-412.64597082,0.00054721,60]
[312909866,1706454723140,-150.2066421,0.00054734,60]
[312909867,1706454723167,-151.0128,0.00054748,69]
[312909868,1706454723194,-150.0,0.00054759,30]
[312909869,1706454723219,-160.45378998,0.0005476,60]
[312909870,1706454723244,-202.07436059,0.00054769,60]
[312909871,1706454723269,-1118.57219074,0.00054782,60]
[312909872,1706454723294,-670.80708622,0.00054794,45]
[312909873,1706454723319,-1791.98665103,0.00054794,45]
[312909874,1706454723344,-1739.38344943,0.00054794,45]
[312909875,1706454723371,-525.29235072,0.00054794,45]
[312909876,1706454723395,-1000.0,0.00054794,45]
[312909877,1706454723420,-231.09646715,0.00054794,45]
[312909878,1706454723445,-730.44116604,0.00054794,45]
[312909879,1706454723471,-536.62845483,0.00054794,45]
[312909880,1706454723497,-634.7824795,0.00054794,45]
[312909881,1706454723523,-850.746502,0.00054794,45]
[312909882,1706454723551,-1371.07823212,0.00054794,45]
[312909883,1706454723579,-881.22512055,0.00054794,45]
[312909884,1706454723606,-512.26517061,0.00054794,45]
[312909885,1706454723632,-1000.0,0.00054794,45]
[312909886,1706454723659,-310.07684019,0.00054794,45]
[312909887,1706454723685,-236.28117006,0.00054794,45]
[312909888,1706454723711,-1117.90392047,0.00054794,45]
[312909889,1706454723738,-1000.0,0.00054794,45]
[312909890,1706454723769,-383.05006239,0.00054794,45]
[312909891,1706454723795,-168.87316719,0.00054794,45]
[312909892,1706454723822,-773.75377653,0.00054794,45]
[312909893,1706454723848,-1000.0,0.00054794,45]
[312909894,1706454723875,-543.44,0.00054794,120]
[312909895,1706454723905,-233.18779944,0.00054794,45]
[312909896,1706454723932,-500.0,0.00054794,120]
[312909897,1706454723959,-500.0,0.00054794,120]
[312909898,1706454723988,-500.0,0.00054794,120]
[312909899,1706454724023,-500.0,0.00054794,120]
[312909900,1706454724051,-500.0,0.00054794,120]
[312909901,1706454724078,-500.0,0.00054794,120]
[312909902,1706454724105,-500.0,0.00054794,120]
[312909903,1706454724133,-241.26292883,0.00054794,120]
[312909904,1706454724159,-666.0,0.00054794,120]
[312909905,1706454724185,-500.0,0.00054794,120]
[312909906,1706454724210,-834.81,0.00054794,120]
[312909907,1706454724236,-586.28,0.00054794,120]
[312909908,1706454724265,-500.0,0.00054794,120]
[312909909,1706454724291,-736.24,0.00054794,120]
[312909910,1706454724316,-500.0,0.00054794,120]
[312909911,1706454724342,-157.89769408,0.00054794,45]
[312909912,1706454724366,-10000.0,0.00054794,30]
[312909913,1706454724390,-1590.02,0.00054794,120]
[312909914,1706454724414,-10000.0,0.00054794,30]
[312909915,1706454724437,-10000.0,0.00054794,30]
[312909916,1706454724461,-227.783313,0.00054794,30]